bitfinex/quotes_ETHUSD_20250623
["timestamp","ask_amount","ask_price","bid_price","bid_amount"]
[1750716385914,1.214,2381.5,2380.7,14.80431771]
[1750716385915,1.214,2381.5,2380.7,10.604]
[1750716386244,1.214,2381.5,2379.7,1.2867]
[1750716386451,1.214,2381.5,2379.3,4.20288535]
[1750716386452,1.2224,2381.3,2380.3,4.20100977]
[1750716386737,1.2224,2381.1,2379.7,0.75617572]
[1750716386945,1.2224,2381.1,2379.9,4.20182932]
[1750716387117,0.55,2381.0,2379.9,0.37886229]
[1750716387311,1.26,2380.9,2379.3,10.92091817]
[1750716387513,1.26,2380.9,2379.7,4.20219949]
[1750716387709,0.55,2381.1,2379.4,0.37900992]
[1750716387939,0.55,2380.1,2378.8,4.20371529]
[1750716388110,0.55,2380.1,2378.2,1.2224]
[1750716388111,0.55,2380.1,2378.9,0.73025603]
[1750716388307,1.26,2379.9,2378.3,0.37934485]
[1750716388609,1.26,2379.9,2377.6,1.1807]
[1750716388610,1.26,2379.6,2378.0,0.37934485]
[1750716388918,1.26,2379.2,2377.8,4.20545941]
[1750716389118,1.26,2379.2,2377.9,0.37969964]
[1750716389318,1.26,2379.2,2377.8,4.58525142]
[1750716389546,12.441,2379.2,2377.9,0.37969964]
[1750716389778,1.2503,2379.1,2377.7,0.76005436]
[1750716389939,1.2503,2379.1,2377.8,0.37969964]
[1750716390109,1.2503,2379.1,2377.9,4.58499402]
[1750716390313,1.2503,2379.1,2378.0,0.37969964]
[1750716390600,0.55,2379.0,2377.8,0.37969964]
[1750716390707,0.55,2379.0,2377.3,0.7610297]
[1750716390708,0.55,2378.8,2377.3,0.7610297]
[1750716390912,0.55,2378.6,2377.4,0.38058249]
[1750716391222,1.2503,2378.7,2377.5,4.58705627]
[1750716391425,1.2503,2378.7,2377.2,10.489]
[1750716391426,1.2503,2378.7,2377.6,0.76187737]
[1750716391625,1.2503,2378.7,2377.9,4.20527803]
[1750716391945,1.2503,2378.7,2378.3,4.20467363]
[1750716392151,1.2503,2378.7,2378.3,0.38052307]
[1750716392332,1.2503,2378.7,2378.3,4.20465168]
[1750716392535,1.2503,2378.7,2378.3,0.38052696]
[1750716392732,1.2503,2378.7,2378.2,14.67677054]
[1750716392915,1.2503,2378.7,2378.3,0.38051892]
[1750716393117,1.2133,2379.2,2378.4,0.38051892]
[1750716393349,1.2133,2379.2,2378.6,4.2040907]
[1750716393548,1.2133,2379.2,2378.7,0.38037751]
[1750716393848,1.2133,2379.2,2378.8,0.38037751]
[1750716394147,1.2133,2379.2,2378.6,0.38037751]
[1750716394361,1.2133,2379.2,2378.7,0.38037751]
[1750716394562,1.2133,2379.2,2378.5,0.38037751]
[1750716395058,1.2133,2379.2,2378.2,14.62883829]
[1750716395258,1.2133,2379.2,2378.3,0.38037751]
[1750716395423,0.55,2379.1,2378.4,0.38037751]
[1750716395625,31.2911,2378.7,2377.6,0.76365336]
[1750716395926,3.3260661,2378.7,2377.7,0.3820426]
[1750716396127,1.1938,2378.6,2377.4,0.38215639]
[1750716396355,1.1938,2378.6,2377.5,0.38208201]
[1750716396674,1.1938,2378.4,2377.2,10.377]
[1750716396836,10.0,2378.6,2377.3,0.38164225]
[1750716396837,1.1938,2378.2,2377.3,0.38164225]
[1750716397044,1.1938,2378.2,2377.4,0.38164225]
[1750716397265,1.1938,2378.2,2377.1,0.76348747]
[1750716397453,1.1938,2378.2,2377.1,10.73679855]
[1750716397657,1.1938,2378.2,2377.2,11.11868517]
[1750716397868,1.1938,2378.2,2377.3,0.38188966]
[1750716398046,1.1938,2378.2,2377.4,0.38188966]
[1750716398374,1.1938,2378.2,2377.0,10.341]
[1750716398579,1.1938,2378.2,2377.1,0.38195585]
[1750716398762,0.55,2377.8,2376.7,0.76334488]
[1750716398963,1.2377,2377.7,2376.3,10.335]
[1750716399162,1.2377,2377.7,2376.6,10.0]
[1750716399358,10.0,2379.4,2377.6,4.20592193]
[1750716399359,40.0,2379.3,2377.6,4.20592193]
[1750716399565,1.2583,2378.8,2377.7,0.38125207]
[1750716399762,4.12583,2379.2,2377.3,10.332]
[1750716399763,40.55,2378.5,2377.3,10.332]
[1750716400070,1.2268,2378.2,2377.3,10.332]
[1750716400369,1.2268,2378.2,2377.1,10.321]
[1750716400592,1.2268,2378.2,2377.0,10.321]
[1750716401074,10.0,2378.8,2376.4,4.20798332]
[1750716401075,1.2277,2377.9,2376.4,4.20798332]
[1750716401234,4.40547,2377.9,2376.2,1.2763]
[1750716401438,1.2277,2377.4,2375.9,10.294]
[1750716401659,1.2277,2377.4,2375.8,4.20903003]
[1750716401872,1.2277,2377.4,2374.9,5.43455345]
[1750716401873,0.55,2376.9,2374.7,1.2754]
[1750716402072,0.55,2377.1,2375.5,4.20963492]
[1750716402073,40.0,2376.7,2375.5,4.20963492]
[1750716402275,4.12277,2376.7,2374.9,10.0]
[1750716402476,30.0,2376.7,2375.1,4.21024685]
[1750716402673,30.0,2376.7,2374.7,5.48643515]
[1750716402674,30.55,2376.5,2375.2,0.35145781]
[1750716402895,1.2277,2376.4,2375.2,0.35145781]
[1750716403114,1.2277,2376.4,2375.2,4.56154068]
[1750716403290,1.2277,2376.4,2375.2,0.35145781]
[1750716403586,1.2277,2376.4,2375.2,4.21017087]
[1750716403785,1.2277,2376.4,2375.6,4.20935451]
[1750716404089,1.2277,2376.4,2375.6,10.259]
[1750716404290,30.0,2377.7,2375.9,4.20893135]
[1750716404505,30.0,2377.7,2375.8,4.20910851]
[1750716404506,4.12277,2377.7,2375.8,4.20910851]
[1750716404787,1.2277,2377.8,2376.0,0.55]
[1750716404998,1.2277,2377.8,2376.2,11.2544]
[1750716405208,1.2277,2377.8,2377.1,4.20680428]
[1750716405351,1.2277,2377.8,2377.2,10.237]
[1750716405551,1.2277,2377.8,2377.5,4.20599506]
[1750716405864,1.2277,2377.8,2377.6,4.20579941]
[1750716406071,1.2277,2377.8,2377.3,4.20635164]
[1750716406252,1.2277,2377.8,2376.9,10.0]
[1750716406253,1.2277,2377.8,2377.4,10.229]
[1750716406455,1.2277,2377.8,2377.4,14.43515452]
[1750716406657,1.2974,2378.4,2377.4,10.229]
[1750716407212,1.194,2378.2,2377.3,4.20628769]
[1750716407352,1.194,2378.2,2377.2,10.0]
[1750716407551,1.194,2378.2,2377.0,4.107]
[1750716407552,1.194,2378.2,2377.4,10.0]
[1750716407809,4.107,2380.2,2377.4,10.0]
[1750716407810,30.0,2379.4,2377.5,10.23]
[1750716407950,30.0,2379.4,2376.7,16.26105749]
[1750716407951,1.194,2379.1,2376.8,0.42650835]
[1750716408265,0.55,2378.5,2376.9,10.218]
[1750716408464,1.2151,2378.6,2377.5,4.20601349]
[1750716408667,1.2151,2378.6,2376.9,10.218]
[1750716408668,1.2151,2378.6,2377.0,10.0]
[1750716408869,1.2151,2378.6,2377.4,4.20613576]
[1750716409194,1.2151,2378.6,2376.8,10.41480008]
[1750716409195,1.2151,2379.5,2377.5,15.5186]
[1750716409439,1.2151,2379.5,2377.6,10.0]
[1750716409706,1.2151,2379.5,2377.7,14.324]
[1750716410358,1.2151,2379.5,2377.5,11.1866]
[1750716410359,1.1849,2379.2,2377.8,10.215]
[1750716410569,0.53879057,2379.1,2377.8,10.215]
[1750716410767,1.1849,2379.2,2377.8,10.215]
[1750716410970,30.0,2379.1,2377.9,10.199]
[1750716411194,1.1849,2379.0,2377.9,10.199]
[1750716411798,30.0,2378.4,2377.1,10.191]
[1750716411971,0.55,2378.1,2376.9,10.189]
[1750716412172,1.3002,2378.0,2376.9,10.189]
[1750716412892,30.55,2377.9,2377.0,10.174]
[1750716413064,30.0,2377.9,2377.0,10.174]
[1750716413818,1.3002,2378.0,2376.1,14.31355684]
[1750716413819,1.3002,2378.0,2376.2,10.0]
[1750716414100,1.3002,2378.0,2376.4,4.20801824]
[1750716414101,0.55,2377.9,2376.4,4.20801824]
[1750716414284,0.55,2377.9,2376.3,14.36018546]
[1750716414485,0.55,2377.9,2376.3,14.36014992]
[1750716415002,1.3002,2378.0,2376.4,0.23070274]
[1750716415360,1.3002,2378.0,2376.7,4.20740806]
[1750716415565,1.3002,2378.0,2376.6,4.20769166]
[1750716415566,1.3002,2378.0,2376.6,4.2075806]
[1750716415787,1.3002,2378.0,2376.5,4.20786871]
[1750716415991,1.3002,2378.0,2376.6,10.117]
[1750716416195,1.3002,2378.0,2376.7,4.20742005]
[1750716416400,1.3002,2378.0,2376.6,10.117]
[1750716416614,1.3002,2378.0,2377.2,4.20659677]
[1750716416911,1.3002,2378.0,2376.7,4.4391976]
[1750716416912,1.3002,2378.0,2376.7,5.42462977]
[1750716417111,1.3002,2378.0,2377.4,4.20613682]
[1750716417317,1.3002,2378.0,2377.5,10.101]
[1750716417476,1.3002,2378.0,2377.0,1.21711515]
[1750716417675,1.3002,2378.0,2377.1,10.094]
[1750716417876,1.3002,2378.0,2377.2,10.089]
[1750716418815,1.3002,2378.0,2377.3,4.20633991]
[1750716418981,1.3002,2378.0,2377.4,10.074]
[1750716419487,1.1904,2378.5,2377.5,0.2317621]
[1750716419687,40.0,2378.2,2376.7,4.20741688]
[1750716419890,40.0,2378.2,2376.6,1.63189842]
[1750716419891,1.91657385,2378.1,2376.8,0.23190214]
[1750716420218,1.1904,2378.3,2377.1,4.20680661]
[1750716420380,1.1904,2378.3,2377.3,4.20631488]
[1750716420581,1.1904,2378.3,2377.1,10.082]
[1750716420794,0.55,2378.2,2376.6,1.63189842]
[1750716421117,0.55,2378.2,2376.2,0.41408433]
[1750716421118,0.55,2378.0,2376.7,10.081]
[1750716421305,0.55,2377.9,2376.8,0.23201648]
[1750716421508,1.2246,2377.8,2376.7,10.081]
[1750716421681,1.2246,2377.8,2376.8,10.29499908]
[1750716421882,1.2246,2377.8,2376.9,0.23199908]
[1750716422282,1.2246,2377.8,2376.9,10.062]
[1750716422510,1.2246,2377.8,2377.0,0.23196686]
[1750716422712,1.2246,2377.8,2377.1,0.23196976]
[1750716423014,1.2246,2377.8,2377.0,4.43878508]
[1750716423228,1.2246,2377.8,2377.2,4.20652259]
[1750716423520,1.2246,2377.8,2377.4,4.20617527]
[1750716423731,1.2246,2377.8,2377.3,10.044]
[1750716423910,10.0,2379.2,2377.4,0.23198424]
[1750716424223,30.0,2379.0,2377.7,4.20564498]
[1750716424381,10.0,2379.0,2377.4,4.20626539]
[1750716424586,1.2634,2378.8,2377.5,0.23215024]
[1750716424790,1.2634,2378.8,2377.4,10.021]
[1750716425026,1.2634,2378.6,2377.5,0.23215024]
[1750716425324,1.2634,2378.6,2377.7,4.20574504]
[1750716425630,40.0,2379.8,2378.2,4.20485413]
[1750716425796,10.0,2379.6,2378.3,10.012]
[1750716425990,10.0,2379.6,2378.0,4.20515863]
[1750716425991,1.2544,2379.8,2378.4,0.23192777]
[1750716426325,1.2544,2379.8,2378.6,2.88559842]
[1750716426538,1.2544,2379.8,2379.1,4.20323675]
[1750716426724,1.2544,2379.8,2379.3,4.2027953]
[1750716426931,1.2544,2379.8,2379.2,4.20301453]
[1750716427092,1.2544,2379.8,2379.2,4.20305617]
[1750716427288,1.2544,2379.8,2379.3,14.42517697]
[1750716427492,1.1794,2380.4,2379.7,4.20210289]
[1750716427939,1.1794,2380.4,2379.4,0.2313259]
[1750716428109,1.1794,2380.4,2379.6,4.2022585]
[1750716428423,1.1794,2380.4,2379.7,4.20219091]
[1750716428591,18.42544454,2381.6,2379.8,0.23043859]
[1750716428592,1.1794,2381.0,2379.8,0.23043859]
[1750716428791,1.1794,2381.0,2379.9,14.17284113]
[1750716429014,1.1794,2381.0,2379.9,14.17284083]
[1750716429444,1.1794,2381.0,2379.9,9.971]
[1750716430089,1.1794,2381.0,2379.9,14.17273577]
[1750716430293,1.1794,2381.0,2379.9,14.1727499]
[1750716430525,1.1794,2381.0,2379.5,4.20252912]
[1750716430746,1.1794,2381.0,2379.3,10.0]
[1750716430927,1.1794,2381.0,2380.1,4.20141076]
[1750716431128,0.2214217,2381.6,2379.4,9.925]
[1750716431129,1.2999,2380.8,2379.4,9.925]
[1750716431332,0.55,2380.4,2378.7,1.2833]
[1750716431537,0.55,2380.4,2379.0,9.929]
[1750716431538,3.73458,2380.4,2379.0,9.929]
[1750716431736,1.2958,2380.3,2379.0,14.13237565]
[1750716431940,1.2958,2380.3,2379.0,9.929]
[1750716432347,1.2958,2380.3,2379.2,4.20304336]
[1750716432824,1.2958,2380.3,2379.1,4.20314136]
[1750716433032,1.2958,2380.3,2379.0,14.13232094]
[1750716433249,1.2958,2380.3,2379.1,9.914]
[1750716433541,1.2958,2380.3,2379.1,14.11726507]
[1750716433740,1.2958,2380.3,2377.7,13.41202179]
[1750716433741,0.55,2380.2,2378.3,1.2655]
[1750716433941,0.55,2380.0,2378.3,1.2655]
[1750716434132,1.258,2379.9,2378.4,14.08149534]
[1750716434303,11.258,2380.1,2378.3,0.41620738]
[1750716434518,1.258,2379.3,2377.4,9.872]
[1750716434732,30.0,2378.8,2377.4,9.872]
[1750716434932,14.75344513,2379.1,2377.4,9.872]
[1750716434933,0.55,2379.1,2377.4,9.872]
[1750716435119,0.55,2379.1,2377.2,0.42828173]
[1750716435120,1.7889,2378.7,2377.5,9.899]
[1750716436216,1.2389,2378.7,2377.5,9.899]
[1750716436636,1.2389,2378.7,2377.7,4.20563509]
[1750716436976,1.2389,2378.7,2378.1,0.04]
[1750716436977,0.3589,2378.7,2378.1,0.04]
[1750716437455,30.0,2378.5,2378.1,0.04]
[1750716437664,30.0,2378.4,2378.1,0.04]
[1750716438224,10.6369274,2379.7,2378.1,0.04]
[1750716438424,10.0,2379.3,2378.1,0.04]
[1750716438649,0.55,2379.2,2378.1,0.04]
[1750716439138,30.0,2379.6,2378.1,0.04]
[1750716439338,10.099,2379.7,2378.1,4.24497998]
[1750716439544,10.099,2379.7,2378.1,0.04]
[1750716439744,10.0,2379.4,2378.1,0.04]
[1750716439945,1.3012,2378.9,2378.1,0.04]
[1750716440864,1.3012,2379.5,2378.1,0.04]
[1750716441079,2.23032012,2379.5,2378.1,0.04]
[1750716441629,1.3012,2379.5,2378.2,9.813]
[1750716441834,1.3012,2379.5,2378.5,4.20431754]
[1750716442173,1.3012,2379.5,2378.3,4.20452997]
[1750716442333,1.3012,2379.5,2378.2,9.813]
[1750716442533,1.3012,2379.5,2378.6,4.20402359]
[1750716442742,1.3012,2379.5,2378.5,4.20425916]
[1750716442948,1.2968,2380.1,2378.8,4.2037045]
[1750716443172,0.04,2380.9,2379.1,4.20310192]
[1750716443375,0.04,2380.9,2379.2,14.00297711]
[1750716443669,0.04,2380.9,2379.2,9.8]
[1750716443670,1.2968,2380.7,2379.2,9.8]
[1750716443836,0.29290635,2380.6,2379.4,10.0]
[1750716444170,0.29290635,2380.6,2379.3,10.0]
[1750716444342,0.29290635,2380.6,2379.4,13.99363072]
[1750716444544,0.29290635,2380.6,2379.0,0.42810403]
[1750716444851,41.2968,2380.3,2378.7,1.175]
[1750716445158,4.18468,2380.2,2378.8,4.20369992]
[1750716445479,1.2968,2380.3,2378.9,4.20362352]
[1750716445811,0.29290635,2380.6,2379.4,0.55]
[1750716445940,0.29290635,2380.6,2380.0,4.20156768]
[1750716446140,0.29290635,2380.6,2380.1,9.784]
[1750716446671,0.29290635,2380.6,2379.6,9.784]
[1750716446870,0.04,2380.9,2379.6,9.784]
[1750716447097,0.04,2380.9,2379.6,13.98632776]
[1750716447276,0.04,2380.9,2379.4,4.20274018]
[1750716447478,11.195,2380.8,2379.3,1.175]
[1750716447636,5.32395334,2380.7,2379.2,9.77]
[1750716447837,1.1235,2380.7,2379.2,13.97297801]
[1750716448039,30.0,2380.6,2379.2,9.77]
[1750716448345,0.55,2380.6,2379.1,13.96324875]
[1750716448570,0.55,2380.6,2378.9,5.4377896]
[1750716448571,30.0,2380.6,2378.9,5.4377896]
[1750716448744,13.86009616,2380.5,2379.0,9.751]
[1750716448940,0.55,2380.4,2378.9,1.2342]
[1750716449168,1.195,2380.5,2378.8,9.746]
[1750716449342,1.195,2380.5,2379.0,4.20328505]
[1750716449649,11.2874,2380.2,2378.6,4.203982]
[1750716449837,5.47114,2380.2,2378.9,9.742]
[1750716450043,1.2874,2380.2,2378.9,13.94560049]
[1750716450480,1.2874,2380.2,2379.1,4.20326216]
[1750716450782,1.2874,2380.2,2378.9,13.94556634]
[1750716450993,1.2874,2380.2,2378.9,9.742]
[1750716451203,1.2874,2380.2,2379.1,4.20325591]
[1750716451359,1.2874,2380.2,2379.0,13.91636407]
[1750716451561,1.2874,2380.2,2379.4,4.20264299]
[1750716451785,1.2874,2380.2,2379.0,9.713]
[1750716451985,1.2874,2380.2,2379.3,4.20280365]
[1750716452290,1.2874,2380.2,2379.4,4.20264809]
[1750716452463,1.2874,2380.2,2379.5,4.20255972]
[1750716452666,1.2116,2380.6,2378.7,10.0]
[1750716452893,1.2116,2380.6,2378.8,13.381]
[1750716453057,1.2116,2380.6,2378.9,0.23016801]
[1750716453256,1.2116,2380.6,2379.5,4.2024837]
[1750716453661,1.2116,2380.6,2379.1,4.20322917]
[1750716453897,1.2116,2380.6,2379.4,4.20264861]
[1750716454299,1.2116,2380.6,2379.3,4.20283886]
[1750716454622,30.55,2379.7,2378.1,0.04]
[1750716454763,1.2225,2379.8,2378.1,0.4688617]
[1750716455103,1.2225,2379.8,2378.2,4.20486081]
[1750716455287,1.2225,2379.8,2379.1,4.20318912]
[1750716455488,1.2225,2379.8,2379.1,4.20318139]
[1750716455693,1.2225,2379.8,2379.0,4.20337777]
[1750716455892,1.2225,2379.8,2379.0,4.20344423]
[1750716456101,1.2225,2379.8,2378.9,13.84550601]
[1750716456487,1.2225,2379.8,2378.9,13.8456193]
[1750716456689,1.2225,2379.8,2379.0,4.20336715]
[1750716457013,1.2225,2379.8,2378.7,4.20397239]
[1750716457318,1.2225,2379.8,2378.4,13.82741425]
[1750716457608,1.2225,2379.8,2378.4,9.623]
[1750716457826,1.2225,2379.8,2378.5,4.20433046]
[1750716458112,1.2225,2379.8,2379.2,4.20307896]
[1750716458270,1.2225,2379.8,2379.2,13.81100333]
[1750716458474,1.2225,2379.8,2379.2,9.608]
[1750716459115,1.2225,2379.8,2378.8,4.20364253]
[1750716459276,1.2225,2379.8,2379.1,9.594]
[1750716459919,1.2225,2379.8,2379.2,4.20297754]
[1750716460134,1.1742,2380.7,2379.1,9.594]
[1750716460282,1.1742,2380.7,2379.2,4.20298736]
[1750716460485,1.1742,2380.7,2379.7,4.20216909]
[1750716460786,1.1742,2380.7,2379.4,4.20267698]
[1750716461010,1.1742,2380.7,2379.5,4.2025612]
[1750716461194,1.1742,2380.7,2379.6,4.20230232]
[1750716461394,1.1742,2380.7,2379.6,4.20236799]
[1750716461595,1.1742,2380.7,2379.1,9.594]
[1750716461792,1.1742,2380.7,2377.1,8.11682676]
[1750716461793,30.55,2380.6,2379.2,9.564]
[1750716462148,1.2666,2380.4,2379.1,9.538]
[1750716462334,0.55,2380.3,2378.7,4.2038545]
[1750716462646,0.55,2380.1,2378.8,9.535]
[1750716462809,1.2529,2380.0,2378.8,9.535]
[1750716463130,1.2529,2380.0,2378.8,9.526]
[1750716463499,1.2529,2380.0,2378.7,4.20396592]
[1750716463735,1.2529,2380.0,2378.7,13.71796592]
[1750716464040,1.2529,2380.0,2378.7,13.71796201]
[1750716464331,1.2529,2380.0,2378.7,9.514]
[1750716464495,1.2529,2380.0,2378.8,9.5]
[1750716464692,1.2529,2380.0,2378.1,14.79641151]
[1750716464693,1.264,2379.7,2378.1,1.67189842]
[1750716464897,10.0,2379.5,2378.5,4.20428283]
[1750716465139,1.264,2379.7,2378.2,4.20486081]
[1750716465435,1.264,2379.7,2378.8,4.20366422]
[1750716465599,1.264,2379.7,2378.7,4.20396911]
[1750716465801,1.264,2379.7,2378.6,4.20411203]
[1750716466043,1.264,2379.7,2378.6,4.20401248]
[1750716466448,1.264,2379.7,2378.5,4.20425521]
[1750716466670,1.264,2379.7,2378.6,4.2041537]
[1750716466861,1.264,2379.7,2378.7,4.20396291]
[1750716467057,1.264,2379.7,2378.6,4.20407448]
[1750716467273,1.264,2379.7,2378.7,4.20394564]
[1750716467580,1.264,2379.7,2378.9,4.20351051]
[1750716467783,1.264,2379.7,2378.4,9.501]
[1750716467986,1.264,2379.7,2379.2,4.20295194]
[1750716468284,1.264,2379.7,2379.3,4.20280134]
[1750716468452,1.264,2379.7,2379.4,4.20272903]
[1750716468652,1.264,2379.7,2379.1,4.20319115]
[1750716468984,1.264,2379.7,2379.3,4.20281545]
[1750716469149,1.264,2379.7,2378.7,4.20380159]
[1750716469345,1.2795,2380.4,2378.7,4.20380159]
[1750716469599,1.2795,2380.4,2379.6,4.20238682]
[1750716470100,1.2795,2380.4,2380.1,4.20141744]
[1750716470288,1.2795,2380.4,2379.3,4.20291682]
[1750716470469,1.2795,2380.4,2379.5,4.20254205]
[1750716470665,1.2795,2380.4,2379.2,9.422]
[1750716470882,1.2795,2380.4,2380.0,4.20166695]
[1750716471113,1.2795,2380.4,2379.6,4.20227706]
[1750716471407,1.2795,2380.4,2379.4,4.20271434]
[1750716471566,1.2795,2380.4,2379.3,4.20283118]
[1750716471767,1.2795,2380.4,2379.5,4.20255974]
[1750716472702,1.2795,2380.4,2379.6,4.20224343]
[1750716472869,1.2795,2380.4,2379.4,4.20264301]
[1750716473066,1.2795,2380.4,2379.5,4.20252781]
[1750716473270,0.55,2380.3,2378.9,1.63189842]
[1750716473500,0.55,2380.3,2379.0,9.383]
[1750716473705,0.55,2380.3,2379.2,4.20298114]
[1750716473866,0.55,2380.3,2379.3,4.20282646]
[1750716474210,10.0,2380.1,2378.7,1.63189842]
[1750716474421,0.55,2380.1,2378.8,4.20372872]
[1750716474707,1.2306,2380.2,2379.0,4.20327404]
[1750716474894,1.2306,2380.2,2378.5,1.63189842]
[1750716475092,1.2306,2380.2,2378.5,4.20431868]
[1750716475403,0.55,2380.1,2378.5,0.23174914]
[1750716475607,1.1886,2380.1,2378.6,9.356]
[1750716475806,1.1886,2380.1,2378.9,4.20354079]
[1750716476010,1.1886,2380.1,2379.0,4.20340546]
[1750716476192,1.1886,2380.1,2378.6,9.356]
[1750716476193,1.1886,2380.1,2378.7,1.63189842]
[1750716476398,1.1886,2380.1,2378.8,6.06750995]
[1750716476598,1.1886,2380.1,2378.9,1.86370972]
[1750716476795,1.1886,2380.1,2379.0,4.20344682]
[1750716477008,1.1886,2380.1,2379.2,4.20309347]
[1750716477310,1.1886,2380.1,2379.0,9.341]
[1750716477510,1.1886,2380.1,2378.7,9.337]
[1750716477811,1.1886,2380.1,2378.8,0.23203543]
[1750716477980,1.1886,2380.1,2378.8,4.43583401]
[1750716478188,1.1886,2380.1,2379.0,4.20334047]
[1750716478370,1.1886,2380.1,2379.1,0.23205092]
[1750716478681,1.1886,2380.1,2378.6,5.92803742]
[1750716478682,1.1886,2380.1,2378.8,0.23205092]
[1750716478886,1.1886,2380.1,2379.0,4.20333179]
[1750716479084,1.1886,2380.1,2378.8,4.20372418]
[1750716479316,1.1886,2380.1,2378.9,0.2320082]
[1750716479482,1.1886,2380.1,2378.8,0.2320082]
[1750716479680,1.1886,2380.1,2379.0,4.20343087]
[1750716480212,1.1886,2380.1,2379.2,4.20307889]
[1750716480393,1.1886,2380.1,2379.1,4.20319213]
[1750716480599,1.1886,2380.1,2379.5,4.20254166]
[1750716480984,1.1886,2380.1,2379.6,4.20236826]
[1750716481185,1.1693,2380.5,2379.4,12.20249842]
[1750716481422,1.2093,2380.9,2379.7,5.83410878]
[1750716481712,1.2093,2380.9,2380.6,4.20053145]
[1750716481913,1.2093,2380.9,2380.4,9.287]
[1750716482074,1.2093,2380.9,2380.4,13.4879664]
[1750716482273,1.2093,2380.9,2380.4,9.287]
[1750716482476,1.2093,2380.9,2380.7,4.2003431]
[1750716482712,1.2093,2380.9,2380.8,4.20026881]
[1750716482713,0.04,2380.9,2380.8,4.20026881]
[1750716482896,0.04,2380.9,2380.4,10.5204]
[1750716483098,0.04,2380.9,2380.5,4.20070449]
[1750716483299,0.04,2380.9,2380.1,1.63189842]
[1750716483514,0.04,2380.9,2380.1,9.271]
[1750716484016,0.04,2380.9,2380.1,13.47241971]
[1750716484215,0.04,2380.9,2380.2,9.259]
[1750716484419,0.04,2380.9,2380.8,4.20026881]
[1750716484633,1.3299,2381.9,2381.3,4.19932552]
[1750716484634,0.04,2381.9,2381.3,4.19932552]
[1750716484828,1.2899,2381.5,2380.5,1.63189842]
[1750716485031,1.2899,2381.5,2380.4,9.276]
[1750716485393,0.04,2381.9,2380.4,9.276]
[1750716485394,0.04,2381.9,2381.4,4.19921054]
[1750716485595,0.04,2381.9,2381.5,9.295]
[1750716485921,0.04,2381.9,2381.5,13.49403422]
[1750716486089,0.04,2381.9,2381.5,9.295]
[1750716486592,0.04,2381.9,2381.5,13.49403422]
[1750716489238,0.07519069,2381.6,2381.5,34.74903422]
[1750716489388,1.46627946,2384.0,2382.8,4.19674332]
[1750716489593,1.46627946,2384.0,2383.8,4.1949828]
[1750716489594,0.26007946,2384.0,2383.8,4.1949828]
[1750716489806,0.04,2383.9,2383.8,9.297]
[1750716490091,10.0,2386.2,2383.8,9.297]
[1750716490092,1.31131917,2387.1,2384.8,0.5]
[1750716490290,10.2214217,2388.7,2386.3,10.0]
[1750716490532,10.2214217,2388.7,2386.1,4.19088295]
[1750716490533,0.2214217,2388.7,2386.7,10.55]
[1750716490734,0.2214217,2388.7,2386.5,1.2182]
[1750716490735,30.0,2387.8,2386.9,0.55]
[1750716491027,30.0,2387.8,2386.8,0.55]
[1750716491233,1.199,2387.7,2386.4,4.19034775]
[1750716491392,1.199,2387.7,2386.1,0.41124903]
[1750716491393,3.1199,2387.6,2386.3,10.0]
[1750716491588,1.199,2387.7,2386.6,4.18990227]
[1750716491844,0.90541249,2388.0,2386.6,4.19006117]
[1750716492022,0.90541249,2388.0,2386.0,1.2663]
[1750716492023,1.1642,2387.8,2386.0,1.2663]
[1750716492193,0.2214217,2388.7,2386.7,10.0]
[1750716492194,1.1642,2388.3,2386.7,10.0]
[1750716492394,0.2214217,2388.7,2387.4,11.41147877]
[1750716492708,0.2214217,2388.7,2386.8,23.585]
[1750716492709,0.2214217,2388.7,2387.0,4.18926489]
[1750716492894,0.2214217,2388.7,2386.8,10.09]
[1750716492895,0.2214217,2388.7,2387.2,10.0]
[1750716493095,0.04,2388.9,2388.6,5.40455279]
[1750716493407,0.04,2388.9,2388.8,14.18620227]
[1750716493610,0.04,2388.9,2388.6,14.47455279]
[1750716493611,0.04,2388.9,2388.6,10.288]
[1750716494026,0.04,2388.9,2388.7,10.3]
[1750716494327,0.04,2388.9,2387.8,1.218]
[1750716494328,0.04,2388.9,2388.8,14.47720227]
[1750716494528,0.04,2388.9,2388.4,4.18681052]
[1750716494529,0.04,2388.9,2388.4,0.42309986]
[1750716494690,0.04,2388.9,2387.3,4.18869366]
[1750716494691,0.04,2388.9,2387.0,15.49747877]
[1750716494895,0.04,2388.9,2387.9,10.297]
[1750716495396,0.04,2388.9,2386.8,11.2935]
[1750716495397,0.04,2388.9,2387.2,10.299]
[1750716495591,0.04,2388.9,2386.2,1.2035]
[1750716495592,1.2193,2388.3,2386.2,1.2035]
[1750716495850,4.26270385,2388.9,2386.1,0.04]
[1750716495851,4.18844252,2387.6,2386.1,0.04]
[1750716495991,4.18844252,2387.6,2385.1,10.366]
[1750716495992,30.0,2386.3,2385.1,0.04]
[1750716496198,30.0,2386.0,2385.1,0.04]
[1750716496393,11.2193,2386.1,2385.1,0.04]
[1750716496394,10.0,2385.5,2385.1,0.04]
[1750716496621,10.0,2385.2,2384.1,0.04]
[1750716496822,11.2193,2385.3,2384.1,0.04]
[1750716497009,1.2193,2385.2,2384.1,0.04]
[1750716497731,4.19354559,2384.7,2384.2,0.35013111]
[1750716498031,10.0,2384.8,2383.1,0.04]
[1750716498032,10.0,2384.2,2383.1,0.04]